fUSD/lending_fUSD_20240424
["ID","MTS","AMOUNT","RATE_DAILY","PERIOD"]
[323425593,1713976256459,-1167.27,0.00012054,2]
[323425595,1713976256469,-508.59,0.00012054,2]
[323425597,1713976256478,-2095.87,0.00012054,2]
[323425599,1713976256488,-1553.99,0.00012054,2]
[323425601,1713976256498,-1839.75,0.00012054,2]
[323425602,1713976256507,-584.71,0.00012054,2]
[323425603,1713976256518,-3418.02,0.00012054,2]
[323425604,1713976256528,-636.69,0.00012054,2]
[323425605,1713976256538,-1220.46,0.00012054,2]
[323425606,1713976256548,-2799.01,0.00012054,2]
[323425607,1713976256558,-500.0,0.00012054,2]
[323425608,1713976256568,-57.02812202,0.00012054,2]
[323425609,1713976256581,-4257.80187798,0.00012054,2]
[323425610,1713976256591,-500.0,0.00012054,2]
[323425611,1713976256601,-500.0,0.00012054,2]
[323425612,1713976256611,-592.12,0.00012054,2]
[323425613,1713976256622,-500.0,0.00012054,2]
[323425614,1713976256632,-1945.28,0.00012054,2]
[323425615,1713976256648,-1232.81,0.00012054,2]
[323425616,1713976256659,-2272.15,0.00012054,2]
[323425617,1713976256669,-1584.98,0.00012054,2]
[323425618,1713976256679,-1559.8,0.00012054,2]
[323425619,1713976256689,-3166.0,0.00012054,2]
[323425620,1713976256699,-1218.47,0.00012054,2]
[323425621,1713976256708,-500.0,0.00012054,2]
[323425622,1713976256717,-644.11,0.00012054,2]
[323425623,1713976256726,-685.75,0.00012054,2]
[323425624,1713976256736,-5225.37,0.00012054,2]
[323425626,1713976256746,-500.0,0.00012054,2]
[323425628,1713976256755,-500.0,0.00012054,2]
[323425630,1713976256764,-2275.67,0.00012054,2]
[323425632,1713976256774,-3080.73,0.00012054,2]
[323425634,1713976256783,-500.0,0.00012054,2]
[323425636,1713976256795,-500.0,0.00012054,2]
[323425637,1713976256804,-1915.51,0.00012054,2]
[323425638,1713976256813,-747.07,0.00012054,2]
[323425639,1713976256822,-1824.07,0.00012054,2]
[323425640,1713976256835,-785.82,0.00012054,2]
[323425641,1713976256845,-5977.1,0.00012054,2]
[323425642,1713976256856,-4343.19,0.00012054,2]
[323425643,1713976256865,-964.82506437,0.00012054,2]
[323425644,1713976256879,-267.65493563,0.00012054,2]
[323425645,1713976256892,-2961.26381734,0.00012054,2]
[323425646,1713976256904,-160.17618266,0.00012054,2]
[323425647,1713976256913,-626.45,0.00012054,2]
[323425648,1713976256923,-2365.18,0.00012054,2]
[323425649,1713976256933,-831.43,0.00012054,2]
[323425650,1713976256943,-642.25050315,0.00012054,2]
[323425651,1713976256953,-970.38,0.00012054,2]
[323425652,1713976256965,-500.0,0.00012054,2]
[323425653,1713976256975,-508.36634662,0.00012054,2]
[323425654,1713976256984,-1171.25,0.00012054,2]
[323425655,1713976256994,-1965.03,0.00012054,2]
[323425656,1713976257004,-1489.46,0.00012054,2]
[323425657,1713976257013,-500.0,0.00012054,2]
[323425658,1713976257022,-868.55,0.00012054,2]
[323425659,1713976257032,-500.0,0.00012054,2]
[323425660,1713976257041,-958.46,0.00012054,2]
[323425661,1713976257051,-1857.9,0.00012054,2]
[323425663,1713976257060,-5047.2,0.00012054,2]
[323425665,1713976257070,-640.25,0.00012054,2]
[323425667,1713976257079,-567.55,0.00012054,2]
[323425669,1713976257089,-956.3,0.00012054,2]
[323425670,1713976257099,-500.0,0.00012054,2]
[323425672,1713976257108,-2767.3,0.00012054,2]
[323425673,1713976257118,-2476.67,0.00012054,2]
[323425674,1713976257127,-500.0,0.00012054,2]
[323425675,1713976257140,-515.7,0.00012054,2]
[323425676,1713976257149,-312.0,0.00012069,2]
[323425677,1713976257159,-5894.0,0.00012094,2]
[323425678,1713976257169,-432.51,0.00012094,2]
[323425679,1713976257179,-2156.72,0.00012094,2]
[323425680,1713976257189,-151.69376941,0.00012153,2]
[323425681,1713976257198,-3000.0,0.000122,2]
[323425682,1713976257208,-294.9086,0.00012228,2]
[323425683,1713976257218,-6664.04,0.00012268,2]
[323425684,1713976257227,-151.69376941,0.00012302,2]
[323425685,1713976257237,-500.0,0.00012327,2]
[323425686,1713976257246,-517.0,0.00012328,2]
[323425687,1713976257255,-500.0,0.00012328,2]
[323425688,1713976257265,-500.0,0.00012328,2]
[323425689,1713976257274,-500.0,0.00012328,2]
[323425690,1713976257284,-500.0,0.00012328,2]
[323425691,1713976257293,-500.0,0.00012328,2]
[323425692,1713976257305,-500.0,0.00012328,2]
[323425693,1713976257314,-500.0,0.00012328,2]
[323425694,1713976257324,-500.0,0.00012328,2]
[323425695,1713976257333,-500.0,0.00012328,2]
[323425696,1713976257342,-468.65787963,0.00012328,2]
[323425697,1713976257351,-500.0,0.00012328,2]
[323425698,1713976257361,-500.0,0.00012328,2]
[323425699,1713976257370,-791.18,0.00012328,2]
[323425701,1713976257379,-500.0,0.00012328,2]
[323425703,1713976257390,-500.0,0.00012328,2]
[323425704,1713976257400,-507.83,0.00012328,2]
[323425706,1713976257409,-500.0,0.00012328,2]
[323425707,1713976257419,-734.4,0.00012328,2]
[323425708,1713976257428,-500.0,0.00012328,2]
[323425709,1713976257437,-500.0,0.00012328,2]
[323425710,1713976257446,-500.0,0.00012328,2]
[323425711,1713976257455,-131.77829915,0.00012328,2]
[323425712,1713976257468,-368.22170085,0.00012328,2]
[323425713,1713976257477,-249.74148324,0.00012328,2]
[323425714,1713976257489,-570.51851676,0.00012328,2]
[323425715,1713976257498,-107.48148271,0.00012328,2]
[323425716,1713976257509,-392.51851729,0.00012328,2]
[323425717,1713976257518,-179.13868116,0.00012328,2]
[323425718,1713976257530,-320.86131884,0.00012328,2]
[323425719,1713976257539,-500.0,0.00012328,2]
[323425720,1713976257548,-1759.19,0.00012328,2]
[323425721,1713976257558,-740.61,0.00012328,2]
[323425722,1713976257568,-500.0,0.00012328,2]
[323425723,1713976257577,-500.0,0.00012328,2]
[323425724,1713976257586,-500.0,0.00012328,2]
[323425725,1713976257596,-500.0,0.00012328,2]
[323425727,1713976257605,-571.82,0.00012328,2]
[323425729,1713976257614,-500.0,0.00012328,2]
[323425731,1713976257624,-500.0,0.00012328,2]
[323425733,1713976257633,-500.0,0.00012328,2]
[323425734,1713976257645,-634.48,0.00012328,2]
[323425735,1713976257654,-500.0,0.00012328,2]
[323425736,1713976257663,-500.0,0.00012328,2]
[323425737,1713976257672,-1181.58,0.00012328,2]
[323425738,1713976257682,-500.0,0.00012328,2]
[323425739,1713976257692,-603.08,0.00012328,2]
[323425740,1713976257702,-710.55,0.00012328,2]
[323425741,1713976257712,-644.08,0.00012328,2]
[323425742,1713976257721,-276.24868116,0.00012328,2]
[323425743,1713976257734,-292.96131884,0.00012328,2]
[323425744,1713976257744,-1086.95,0.00012328,2]
[323425745,1713976257754,-500.0,0.00012328,2]
[323425746,1713976257765,-823.03087131,0.00012328,2]
[323425747,1713976257777,-364.59399999,0.00012328,2]
[323425748,1713976257791,-524.4051287,0.00012328,2]
[323425749,1713976257805,-500.0,0.00012328,2]
[323425750,1713976257815,-500.0,0.00012328,2]
[323425751,1713976257824,-500.0,0.00012328,2]
[323425752,1713976257834,-1159.56,0.00012328,2]
[323425753,1713976257846,-1454.53,0.00012328,2]
[323425754,1713976257855,-500.0,0.00012328,2]
[323425755,1713976257865,-1161.19,0.00012328,2]
[323425756,1713976257875,-500.0,0.00012328,2]
[323425757,1713976257889,-500.0,0.00012328,2]
[323425758,1713976257900,-500.0,0.00012328,2]
[323425759,1713976257910,-819.33,0.00012328,2]
[323425760,1713976257919,-500.0,0.00012328,2]
[323425761,1713976257929,-573.51,0.00012328,2]
[323425762,1713976257939,-1224.05,0.00012328,2]
[323425763,1713976257949,-455.97966768,0.00012328,2]
[323425764,1713976257962,-44.02033232,0.00012328,2]
[323425765,1713976257971,-520.44,0.00012328,2]
[323425766,1713976257981,-500.0,0.00012328,2]
[323425767,1713976257992,-500.0,0.00012328,2]
[323425768,1713976258001,-246.61,0.00012328,2]
[323425769,1713976258011,-1002.78,0.00012328,2]
[323425770,1713976258021,-500.0,0.00012328,2]
[323425771,1713976258031,-603.7,0.00012328,2]
[323425772,1713976258040,-729.16,0.00012328,2]
[323425773,1713976258050,-500.0,0.00012328,2]
[323425774,1713976258060,-2225.58,0.00012328,2]
[323425775,1713976258069,-124.26223827,0.00012328,2]
[323425776,1713976258082,-375.73776173,0.00012328,2]
[323425777,1713976258091,-1036.59,0.00012328,2]
[323425778,1713976258101,-500.0,0.00012328,2]
[323425779,1713976258112,-500.0,0.00012328,2]
[323425780,1713976258121,-500.0,0.00012328,2]
[323425781,1713976258130,-1710.7,0.00012328,2]
[323425782,1713976258145,-500.0,0.00012328,2]
[323425783,1713976258155,-500.0,0.00012328,2]
[323425784,1713976258165,-500.0,0.00012328,2]
[323425785,1713976258175,-500.0,0.00012328,2]
[323425786,1713976258184,-838.34,0.00012328,2]
[323425787,1713976258193,-500.0,0.00012328,2]
[323425788,1713976258202,-553.966221,0.00012328,2]
[323425789,1713976258211,-500.0,0.00012328,2]
[323425790,1713976258220,-500.0,0.00012328,2]
[323425791,1713976258229,-1320.6,0.00012328,2]
[323425792,1713976258238,-519.59,0.00012328,2]
[323425793,1713976258247,-2648.44,0.00012328,2]
[323425794,1713976258257,-500.0,0.00012328,2]
[323425795,1713976258267,-500.0,0.00012328,2]
[323425796,1713976258276,-1865.77536379,0.00012328,2]
[323425801,1713976515766,250.91388908,0.00025975,90]
[323425802,1713976649610,-15000.0,9.508e-05,2]
[323425803,1713976765931,658.96,8.219e-05,2]
[323425804,1713976845516,20174.45661466,8.219e-05,2]
[323425805,1713976861337,17823.15484774,8.219e-05,2]
[323425806,1713976979388,-150.0,9.346e-05,2]
[323425808,1713977277640,642.97,8.219e-05,2]
[323425816,1713977431855,-157.19,9.315e-05,2]
[323425817,1713977431865,-234.56573742,9.346e-05,2]
[323425818,1713977431876,-115.43426258,9.346e-05,2]
[323425819,1713977431887,-150.0,9.378e-05,2]
[323425820,1713977431896,-275.2,9.379e-05,2]
[323425821,1713977431905,-382.58594947,9.379e-05,2]
[323425822,1713977431917,-537.58482089,9.379e-05,2]
[323425823,1713977431928,-6018.32790803,9.379e-05,2]
[323425824,1713977431940,-3220.0,9.379e-05,2]
[323425825,1713977431968,-13741.50132161,9.379e-05,2]
[323425826,1713977431977,-250.0,9.479e-05,2]
[323425827,1713977431986,-4475.62,9.481e-05,2]
[323425828,1713977431996,-2917.81,9.486e-05,2]
[323425829,1713977432007,-724.8,9.502e-05,2]
[323425830,1713977432019,-156.85,9.547e-05,2]
[323425831,1713977432027,-156.85,9.63e-05,2]
[323425832,1713977432036,-150.99,9.67e-05,2]
[323425833,1713977432046,-156.85,9.713e-05,2]
[323425834,1713977432055,-156.85,9.796e-05,2]
[323425835,1713977432064,-156.85,9.879e-05,2]
[323425836,1713977432073,-156.85,9.962e-05,2]
[323425837,1713977432082,-162.24677362,0.0001,2]
[323425838,1713977432092,-323.90952101,0.0001,2]
[323425839,1713977432101,-156.85,0.00010045,2]
[323425840,1713977432111,-210.0,0.00010315,2]
[323425841,1713977432122,-184.34,0.00010348,2]
[323425842,1713977432136,-184.34,0.00010351,2]
[323425843,1713977432145,-565.74,0.00010351,2]
[323425844,1713977432154,-184.34,0.00010354,2]
[323425845,1713977432162,-184.34,0.00010356,2]
[323425846,1713977432172,-184.34,0.00010359,2]
[323425847,1713977432181,-184.34,0.00010362,2]
[323425848,1713977432191,-184.34,0.00010364,2]
[323425850,1713977432200,-184.34,0.00010367,2]
[323425852,1713977432211,-184.34,0.0001037,2]
[323425854,1713977432220,-184.34,0.00010373,2]
[323425856,1713977432230,-184.34,0.00010375,2]
[323425858,1713977432239,-184.34,0.00010378,2]
[323425860,1713977432249,-184.34,0.00010381,2]
[323425862,1713977432258,-184.34,0.00010383,2]
[323425864,1713977432269,-184.34,0.00010386,2]
[323425866,1713977432279,-184.34,0.00010389,2]
[323425868,1713977432289,-1566.432,0.00010389,2]
[323425869,1713977432299,-184.34,0.00010392,2]
[323425870,1713977432308,-184.34,0.00010394,2]
[323425871,1713977432319,-184.34,0.00010397,2]
[323425872,1713977432330,-184.34,0.000104,2]
[323425873,1713977432340,-642.97,0.00010443,2]
[323425874,1713977432349,-219.23,0.00010499,2]
[323425875,1713977432360,-275.2,0.00010551,2]
[323425876,1713977432369,-724.8,0.00010689,2]
[323425877,1713977432380,-753.6094,0.00010858,2]
[323425878,1713977432390,-256.1496,0.00010858,2]
[323425879,1713977432400,-1030.38846551,0.00010948,2]
[323425880,1713977432410,-500.0,0.00010958,2]
[323425881,1713977432434,-155.0,0.00010958,2]
[323425882,1713977432444,-500.0,0.00010958,2]
[323425883,1713977432454,-500.0,0.00010958,2]
[323425884,1713977432464,-565.34977281,0.00010958,2]
[323425885,1713977432473,-500.0,0.00010958,2]
[323425886,1713977432482,-345.56,0.00010958,2]
[323425887,1713977432491,-488.24859565,0.00010958,2]
[323425888,1713977432500,-500.0,0.00010958,2]
[323425889,1713977432509,-428.63387479,0.00010958,2]
[323425890,1713977432526,-71.36612521,0.00010958,2]
[323425891,1713977432535,-237.32131004,0.00010958,2]
[323425892,1713977432547,-262.67868996,0.00010958,2]
[323425893,1713977432556,-593.38,0.00010958,2]
[323425894,1713977432566,-550.8,0.00010958,2]
[323425895,1713977432575,-1179.16,0.00010958,2]
[323425896,1713977432584,-500.0,0.00010958,2]
[323425897,1713977432594,-500.0,0.00010958,2]
[323425898,1713977432603,-500.0,0.00010958,2]
[323425899,1713977432612,-500.0,0.00010958,2]
[323425900,1713977432621,-500.0,0.00010958,2]
[323425901,1713977432630,-500.0,0.00010958,2]
[323425902,1713977432640,-615.19,0.00010958,2]
[323425903,1713977432649,-500.0,0.00010958,2]
[323425904,1713977432659,-500.0,0.00010958,2]
[323425905,1713977432669,-500.0,0.00010958,2]
[323425906,1713977432678,-500.0,0.00010958,2]
[323425907,1713977432689,-500.0,0.00010958,2]
[323425908,1713977432698,-802.34,0.00010958,2]
[323425909,1713977432707,-546.56595337,0.00010958,2]
[323425910,1713977432717,-500.0,0.00010958,2]
[323425911,1713977432727,-500.0,0.00010958,2]
[323425912,1713977432736,-500.0,0.00010958,2]
[323425913,1713977432746,-1319.4,0.00010958,2]
[323425914,1713977432756,-500.0,0.00010958,2]
[323425915,1713977432767,-500.0,0.00010958,2]
[323425916,1713977432777,-500.0,0.00010958,2]
[323425917,1713977432786,-500.0,0.00010958,2]
[323425918,1713977432795,-500.0,0.00010958,2]
[323425919,1713977432804,-500.0,0.00010958,2]
[323425920,1713977432814,-500.0,0.00010958,2]
[323425921,1713977432823,-500.0,0.00010958,2]
[323425922,1713977432833,-532.91,0.00010958,2]
[323425923,1713977432843,-500.0,0.00010958,2]
[323425924,1713977432852,-500.0,0.00010958,2]
[323425925,1713977432862,-500.0,0.00010958,2]
[323425926,1713977432871,-870.89,0.00010958,2]
[323425927,1713977432881,-500.0,0.00010958,2]
[323425928,1713977432890,-815.22,0.00010958,2]
[323425929,1713977432899,-500.0,0.00010958,2]
[323425930,1713977432909,-869.67,0.00010958,2]
[323425931,1713977432918,-402.21206817,0.00010958,2]
[323425932,1713977432950,-667.79793183,0.00010958,2]
[323425933,1713977432960,-500.0,0.00010958,2]
[323425934,1713977432969,-500.0,0.00010958,2]
[323425935,1713977432978,-918.04,0.00010958,2]
[323425936,1713977432988,-478.76871386,0.00010958,2]
[323425937,1713977433014,-21.23128614,0.00010958,2]
[323425938,1713977433023,-1090.9,0.00010958,2]
[323425939,1713977433033,-500.0,0.00010958,2]
[323425940,1713977433042,-243.69061324,0.00010958,2]
[323425941,1713977433051,-500.0,0.00010958,2]
[323425942,1713977433061,-184.96,0.00010958,2]
[323425943,1713977433071,-500.0,0.00010958,2]
[323425944,1713977433081,-752.09,0.00010958,2]
[323425945,1713977433091,-500.0,0.00010958,2]
[323425946,1713977433100,-500.0,0.00010958,2]
[323425947,1713977433110,-546.87,0.00010958,2]
[323425948,1713977433120,-500.0,0.00010958,2]
[323425949,1713977433134,-500.0,0.00010958,2]
[323425950,1713977433143,-500.0,0.00010958,2]
[323425951,1713977433153,-500.0,0.00010958,2]
[323425952,1713977433162,-215.5468852,0.00010958,2]
[323425953,1713977433174,-777.45,0.00010958,2]
[323425954,1713977433185,-500.0,0.00010958,2]
[323425955,1713977433194,-500.0,0.00010958,2]
[323425956,1713977433207,-500.0,0.00010958,2]
[323425957,1713977433216,-500.0,0.00010958,2]
[323425958,1713977433227,-500.0,0.00010958,2]
[323425959,1713977433237,-500.0,0.00010958,2]
[323425960,1713977433247,-500.0,0.00010958,2]
[323425961,1713977433258,-500.0,0.00010958,2]
[323425962,1713977433270,-500.0,0.00010958,2]
[323425963,1713977433282,-500.0,0.00010958,2]
[323425964,1713977433293,-500.0,0.00010958,2]
[323425965,1713977433304,-500.0,0.00010958,2]
[323425966,1713977433315,-1669.19,0.00010958,2]
[323425967,1713977433326,-500.0,0.00010958,2]
[323425968,1713977433336,-500.0,0.00010958,2]
[323425969,1713977433346,-990.45,0.00010958,2]
[323425970,1713977433356,-1283.02,0.00010958,2]
[323425971,1713977433365,-584.76,0.00010958,2]
[323425972,1713977433374,-628.76,0.00010958,2]
[323425973,1713977433383,-948.83,0.00010958,2]
[323425974,1713977433394,-500.0,0.00010958,2]
[323425975,1713977433404,-500.0,0.00010958,2]
[323425976,1713977433413,-500.0,0.00010958,2]
[323425977,1713977433422,-500.0,0.00010958,2]
[323425978,1713977433432,-698.23,0.00010958,2]
[323425979,1713977433441,-500.0,0.00010958,2]
[323425980,1713977433450,-500.0,0.00010958,2]
[323425981,1713977433460,-379.18750386,0.00010958,2]
[323425982,1713977433469,-500.0,0.00010958,2]
[323425983,1713977433479,-690.84,0.00010958,2]
[323425984,1713977433488,-500.0,0.00010958,2]
[323425985,1713977433497,-595.84287952,0.00010958,2]
[323425986,1713977433507,-500.0,0.00010958,2]
[323425987,1713977433518,-500.0,0.00010958,2]
[323425988,1713977433528,-500.0,0.00010958,2]
[323425989,1713977433537,-760.72,0.00010958,2]
[323425990,1713977433547,-500.0,0.00010958,2]
[323425991,1713977433557,-500.0,0.00010958,2]
[323425992,1713977433567,-500.0,0.00010958,2]
[323425993,1713977433576,-712.68,0.00010958,2]
[323425994,1713977433586,-500.0,0.00010958,2]
[323425995,1713977433596,-932.32,0.00010958,2]
[323425996,1713977433605,-500.0,0.00010958,2]
[323425997,1713977433615,-500.0,0.00010958,2]
[323425998,1713977433624,-646.09,0.00010958,2]
[323425999,1713977433633,-746.74,0.00010958,2]
[323426000,1713977433643,-500.0,0.00010958,2]
[323426001,1713977433652,-975.97,0.00010958,2]
[323426002,1713977433662,-500.0,0.00010958,2]
[323426003,1713977433671,-500.0,0.00010958,2]
[323426004,1713977433680,-500.0,0.00010958,2]
[323426005,1713977433690,-500.0,0.00010958,2]
[323426006,1713977433699,-975.71,0.00010958,2]
[323426007,1713977433709,-500.0,0.00010958,2]
[323426008,1713977433718,-758.78,0.00010958,2]
[323426009,1713977433727,-500.0,0.00010958,2]
[323426010,1713977433737,-500.0,0.00010958,2]
[323426011,1713977433746,-500.0,0.00010958,2]
[323426012,1713977433756,-757.07,0.00010958,2]
[323426013,1713977433767,-500.0,0.00010958,2]
[323426014,1713977433777,-1186.17,0.00010958,2]
[323426015,1713977433786,-500.0,0.00010958,2]
[323426016,1713977433796,-255.01403907,0.00010958,2]
[323426017,1713977433808,-244.98596093,0.00010958,2]
[323426018,1713977433818,-500.0,0.00010958,2]
[323426019,1713977433827,-418.85218907,0.00010958,2]
[323426020,1713977434086,-81.14781093,0.00010958,2]
[323426021,1713977434096,-322.27313368,0.00010958,2]
[323426022,1713977434111,-177.72686632,0.00010958,2]
[323426023,1713977434122,-899.84,0.00010958,2]
[323426024,1713977434133,-500.0,0.00010958,2]
[323426025,1713977434142,-500.0,0.00010958,2]
[323426026,1713977434151,-500.0,0.00010958,2]
[323426027,1713977434160,-500.0,0.00010958,2]
[323426028,1713977434170,-500.0,0.00010958,2]
[323426029,1713977434179,-500.0,0.00010958,2]
[323426030,1713977434188,-500.0,0.00010958,2]
[323426031,1713977434198,-500.0,0.00010958,2]
[323426032,1713977434207,-500.0,0.00010958,2]
[323426033,1713977434217,-1250.0,0.00011,2]
[323426034,1713977434228,-1415.5523,0.00011017,2]
[323426035,1713977434240,-178.74814188,0.00011116,2]
[323426036,1713977434250,-361.64617789,0.00011116,2]
[323426037,1713977434260,-500.0,0.00011116,2]
[323426038,1713977434271,-222.1596185,0.00011116,2]
[323426039,1713977434281,-500.0,0.00011116,2]
[323426040,1713977434290,-208.59504903,0.00011116,2]
[323426041,1713977434299,-777.86,0.00011116,2]
[323426042,1713977434309,-534.65,0.00011116,2]
[323426043,1713977434318,-1850.92,0.00011116,2]
[323426044,1713977434328,-1478.51,0.00011116,2]
[323426045,1713977434337,-500.0,0.00011116,2]
[323426046,1713977434346,-738.00094636,0.00011116,2]
[323426084,1713977437735,-1458.81905364,0.00011116,2]
[323426088,1713977437745,-500.0,0.00011116,2]
[323426091,1713977437754,-500.0,0.00011116,2]
[323426094,1713977437763,-964.63,0.00011116,2]
[323426096,1713977437783,-500.0,0.00011116,2]
[323426098,1713977437792,-758.88842536,0.00011116,2]
[323426105,1713977437844,-287.38234109,0.00011116,2]
[323426107,1713977437856,-86.32923355,0.00011116,2]
[323426109,1713977437865,-275.48944307,0.00011116,2]
[323426114,1713977437899,-224.51055693,0.00011116,2]
[323426116,1713977437908,-500.0,0.00011116,2]
[323426118,1713977437918,-502.75305929,0.00011116,2]
[323426120,1713977437927,-500.0,0.00011116,2]
[323426122,1713977437937,-2232.24,0.00011117,2]
[323426124,1713977437946,-5488.57,0.00011117,2]
[323426126,1713977437955,-4888.9,0.00011117,2]
[323426128,1713977437965,-6397.56,0.00011117,2]
[323426130,1713977437974,-1724.26,0.00011117,2]
[323426132,1713977437983,-723.4,0.00011117,2]
[323426134,1713977437993,-2417.56,0.00011117,2]
[323426136,1713977438002,-940.01,0.00011117,2]
[323426138,1713977438012,-3964.41,0.00011117,2]
[323426140,1713977438025,-1030.65,0.00011117,2]
[323426142,1713977438034,-2492.44,0.00011117,2]
[323426144,1713977438043,-590.89,0.00011117,2]
[323426146,1713977438052,-721.25,0.00011117,2]
[323426148,1713977438061,-821.23,0.00011117,2]
[323426150,1713977438071,-2661.47,0.00011117,2]
[323426152,1713977438081,-786.64,0.00011117,2]
[323426154,1713977438090,-4071.18,0.00011117,2]
[323426156,1713977438099,-500.0,0.00011117,2]
[323426158,1713977438109,-1444.0,0.00011117,2]
[323426159,1713977438118,-7296.37,0.00011117,2]
[323426160,1713977438129,-1209.67,0.00011117,2]
[323426162,1713977438139,-673.8,0.00011117,2]
[323426164,1713977438149,-1435.46,0.00011117,2]
[323426165,1713977438158,-660.59,0.00011117,2]
[323426166,1713977438167,-1661.78,0.00011117,2]
[323426167,1713977438177,-960.46,0.00011117,2]
[323426168,1713977438186,-1735.74,0.00011117,2]
[323426169,1713977438196,-1254.77,0.00011117,2]
[323426170,1713977438205,-924.08,0.00011117,2]
[323426171,1713977438215,-1063.35638379,0.00011117,2]
[323426172,1713977438250,-166.89361621,0.00011117,2]
[323426173,1713977438259,-504.04,0.00011117,2]
[323426174,1713977438271,-966.2,0.00011117,2]
[323426175,1713977438280,-500.0,0.00011117,2]
[323426176,1713977438289,-1018.8097868,0.00011117,2]
[323426177,1713977438303,-497.6402132,0.00011117,2]
[323426178,1713977438314,-500.0,0.00011117,2]
[323426179,1713977438324,-277.4097868,0.00011117,2]
[323426180,1713977438349,-1595.0202132,0.00011117,2]
[323426181,1713977438360,-500.0,0.00011117,2]
[323426182,1713977438370,-1470.84,0.00011117,2]
[323426183,1713977438379,-658.21,0.00011117,2]
[323426184,1713977438388,-4167.43,0.00011117,2]
[323426185,1713977438398,-768.21,0.00011117,2]
[323426186,1713977438407,-3995.7,0.00011117,2]
[323426187,1713977438416,-440.89417267,0.00011117,2]
[323426190,1713977439792,-967.61582733,0.00011117,2]
[323426191,1713977439801,-1511.40887238,0.00011117,2]
[323426192,1713977439833,-1142.76112762,0.00011117,2]
[323426193,1713977439847,-1157.48887238,0.00011117,2]
[323426194,1713977439904,-570.34112762,0.00011117,2]
[323426195,1713977439913,-722.77887238,0.00011118,2]
[323426196,1713977439957,-1064.00776223,0.00011118,2]
[323426197,1713977439966,-162.24677361,0.00011132,2]
[323426198,1713977439976,-5213.74546416,0.00011219,2]
[323426199,1713977440013,-8382.55892171,0.00011219,2]
[323426200,1713977440026,-265.84680583,0.0001123,2]
[323426201,1713977440035,-261.11392606,0.0001123,8]
[323426202,1713977440045,-500.0,0.0001123,2]
[323426203,1713977440055,-1101.48,0.0001123,2]
[323426204,1713977440064,-500.0,0.0001123,2]
[323426205,1713977440073,-1247.32,0.0001123,2]
[323426206,1713977440083,-899.22,0.0001123,2]
[323426207,1713977440092,-433.82,0.0001123,2]
[323426208,1713977440101,-1919.64,0.0001123,2]
[323426209,1713977440110,-608.22,0.0001123,2]
[323426210,1713977440119,-892.64,0.0001123,2]
[323426211,1713977440130,-2705.94,0.0001123,2]
[323426212,1713977440140,-2215.88,0.0001123,2]
[323426213,1713977440149,-2232.81,0.0001123,2]
[323426214,1713977440159,-1234.84,0.0001123,2]
[323426215,1713977440169,-542.88,0.0001123,2]
[323426216,1713977440179,-1238.21,0.0001123,2]
[323426217,1713977440188,-1143.21,0.0001123,2]
[323426218,1713977440199,-616.18,0.0001123,2]
[323426219,1713977440210,-500.0,0.0001123,2]
[323426220,1713977440219,-1555.65,0.0001123,2]